[Event "Reykjavik Open 2022"]
[Site "Reykjavik"]
[Date "2022.04.07"]
[Round "2.36"]
[White "Thorsteinsdottir, Hallgerdur"]
[Black "Willow, Jonah B"]
[Result "0-1"]
[ECO "B29"]
[WhiteElo "2032"]
[BlackElo "2365"]
[Annotator "TA"]
[PlyCount "116"]
[EventDate "2022.04.06"]
[EventCountry "ISL"]
[SourceTitle "playchess.com"]
[Source "ChessBase"]
[SourceQuality "1"]
[TimeControl "40/5400+30:1800+30"]

{[%evp 66,116,-38,-83,-85,-84,-93,-107,-101,-103,-98,-103,-62,-71,-64,-93,-55,-75,-79,-87,-67,-56,-25,-29,-29,-36,-28,-41,-41,-41,0,-16,-20,-96,-95,-122,-122,-116,-118,-122,-122,-122,-122,-122,-122,-161,-156,-238,-237,-213,-213,-600,-585]} 1. e4 {[%emt 0:00:06]} c5 {[%emt 0:00:08]} 2. Nf3 {[%emt 0:00:10]} Nf6 {[%emt 0:00:38]} 3. e5 {[%emt 0:02:20]} Nd5 {[%emt 0:00:04]} 4. c4 {[%emt 0:01:01]} Nc7 {[%emt 0:01:16]} 5. d4 {[%emt 0:03:35]} cxd4 {[%emt 0:00:10]} 6. Nxd4 {[%emt 0:00:56]} g6 {[%emt 0:02:09]} 7. Be2 {[%emt 0:03:56]} Bg7 {[%emt 0:00:14]} 8. f4 {[%emt 0:00:48]} O-O {[%emt 0:00:53]} 9. O-O {[%emt 0:02:43]} d6 {[%emt 0:01:19]} 10. exd6 {[%emt 0:09:16]} Qxd6 {[%emt 0:01:26]} 11. Nb3 {[%emt 0:00:26]} Qxd1 {[%emt 0:17:40]} 12. Rxd1 {[%emt 0:00:09]} Nc6 {[%emt 0:00:23]} 13. Nc3 {[%emt 0:07:40]} Bf5 {[%emt 0:01:33]} 14. Be3 {[%emt 0:04:10]} Rfd8 {[%emt 0:06:11]} 15. Rxd8+ {[%emt 0:23:55]} Rxd8 {[%emt 0:00:07]} 16. Rd1 {[%emt 0:00:07]} Rxd1+ {[%emt 0:01:25]} 17. Bxd1 {[%emt 0:01:10]} Bd3 {[%emt 0:06:05]} 18. Nd2 {[%emt 0:03:08]} b6 {[%emt 0:05:03]} 19. Kf2 {[%emt 0:01:48]} Nd4 {[%emt 0:08:53]} 20. g4 {[%emt 0:12:36]} Na6 {[%emt 0:05:04]} 21. a3 {[%emt 0:01:31]} Nc5 {[%emt 0:05:58]} 22. b4 {[%emt 0:01:31]} Nb7 {[%emt 0:01:09]} 23. h3 {[%emt 0:04:25]} Nd6 {[%emt 0:05:10]} 24. c5 {[%emt 0:01:20]} bxc5 {[%emt 0:00:12]} 25. bxc5 {[%emt 0:00:02]} Nb7 {[%emt 0:00:19]} 26. Na4 {[%emt 0:00:57]} Bb5 {[%emt 0:00:18]} 27. Ne4 {[%emt 0:00:52]} Bc6 {[%emt 0:02:45]} 28. Nec3 {[%emt 0:00:17]} Na5 {[%emt 0:01:55]} 29. Nb2 {[%emt 0:01:42]} Ne6 {[%emt 0:04:43]} 30. Nca4 {[%emt 0:01:07]} Nc7 {[%emt 0:06:19]} 31. Kg3 {[%emt 0:02:54]} Nb5 {[%emt 0:00:52]} 32. Bd2 {[%emt 0:00:55]} Nb7 {[%emt 0:00:30]} 33. Nc4 {[%emt 0:00:30]} Bd4 {[%emt 0:00:50]} 34. Ne5 {[%emt 0:04:01]} Bxe5 {[%emt 0:01:09]} 35. fxe5 {[%emt 0:00:05]} Nxa3 {[%emt 0:00:54]} 36. Be3 {[%emt 0:00:58]} Nc4 {[%emt 0:00:57]} 37. Bd4 {[%emt 0:00:39]} Nd8 {[%emt 0:01:17]} 38. Nb2 {[%emt 0:01:42]} Nxb2 {[%emt 0:02:21]} 39. Bxb2 {[%emt 0:00:05]} Ne6 {[%emt 0:00:07]} 40. Ba3 {[%emt 0:00:00]} Kf8 {[%emt 0:00:00]} 41. Bb3 {[%emt 0:06:14]} Nd4 {[%emt 0:06:12]} 42. Bc4 {[%emt 0:00:39]} Nc2 {[%emt 0:00:41]} 43. Bc1 {[%emt 0:01:40]} e6 {[%emt 0:01:30]} 44. Bd2 {[%emt 0:02:43]} Bd5 {[%emt 0:01:21]} 45. Bb5 {[%emt 0:01:27]} ({Avoid the trap} 45. Bxd5 $2 exd5 46. Bc3 (46. c6 $2 Ke7 $19) 46... Ke7 $19) 45... Nd4 {[%emt 0:00:45]} 46. Bh6+ {[%emt 0:01:55]} Kg8 {[%emt 0:00:27]} 47. Ba4 {[%emt 0:00:57]} Ne2+ {[%emt 0:11:17]} (47... Bc6 $5 {[%cal Rc6a4]} 48. Bd1 Bb5 $15) 48. Kf2 {[%emt 0:00:33]} Nc3 {[%emt 0:00:07]} 49. Bd7 {[%emt 0:01:56]} (49. Bc2 $11 {remains equal.}) 49... Ne4+ $17 {[%emt 0:00:08]} 50. Ke3 {[%emt 0:01:36]} Nxc5 {[%emt 0:00:06]} 51. Bb5 {[%emt 0:00:13]} a6 {[%emt 0:04:48]} 52. Be2 {[%emt 0:00:23]} a5 {[%emt 0:01:18]} 53. Kd4 {[%emt 0:00:32]} Nb3+ {[%emt 0:00:48]} 54. Kc3 {[%emt 0:00:10]} a4 {[%emt 0:00:21]} 55. Kb4 {[%emt 0:00:38]} Nd4 {[%emt 0:00:34]} 56. Bd1 {[%emt 0:01:05]} (56. Bf1 $17) 56... Nc6+ {[%emt 0:02:41]} 57. Kxa4 {[%emt 0:00:06]} Nxe5 {[%emt 0:00:03]} 58. Bf4 $2 {[%emt 0:01:19]} (58. Be2) 58... Nd3 {[%emt 0:00:04]} 0-1

[Event "Reykjavik Open 2022"]
[Site "Reykjavik"]
[Date "2022.04.07"]
[Round "2.37"]
[White "Thorhallsson, Throstur"]
[Black "Khoury, Theo"]
[Result "1-0"]
[ECO "D40"]
[WhiteElo "2414"]
[BlackElo "1878"]
[Annotator "RC"]
[PlyCount "79"]
[EventDate "2022.04.06"]
[EventCountry "ISL"]
[SourceTitle "playchess.com"]
[Source "ChessBase"]
[SourceQuality "1"]
[TimeControl "40/5400+30:1800+30"]

1. d4 {[%emt 0:04:55]} Nf6 {[%emt 0:00:13]} 2. Nf3 {[%emt 0:00:21]} e6 {[%emt 0:00:11]} 3. c4 {[%emt 0:01:27]} c5 {[%emt 0:00:11]} 4. e3 {[%emt 0:01:37]} d5 {[%emt 0:00:26]} 5. Nc3 {[%emt 0:00:27]} a6 {[%emt 0:00:51]} 6. dxc5 {[%emt 0:06:28]} Bxc5 {[%emt 0:00:26]} 7. a3 {[%emt 0:00:31]} O-O {[%emt 0:03:00]} 8. b4 {[%emt 0:02:29]} Bd6 {[%emt 0:01:18]} 9. cxd5 {[%emt 0:06:59]} exd5 {[%emt 0:01:14]} 10. Be2 {[%emt 0:00:11]} Nc6 {[%emt 0:02:55]} 11. O-O {[%emt 0:02:01]} Be6 {[%emt 0:04:18]} 12. Bb2 {[%emt 0:01:14]} Rc8 {[%emt 0:02:46]} 13. Rc1 {[%emt 0:06:40]} Ne5 {[%emt 0:08:06]} 14. Nxd5 {[%emt 0:28:07]} Nxf3+ {[%emt 0:09:43]} 15. Bxf3 {[%emt 0:00:10]} Bxd5 {[%emt 0:05:34]} 16. Rxc8 {[%emt 0:01:42]} Qxc8 {[%emt 0:04:47]} 17. Bxf6 {[%emt 0:10:08]} Bxf3 {[%emt 0:03:32]} 18. Qxd6 {[%emt 0:02:56]} Qg4 {[%emt 0:05:58]} 19. Qg3 {[%emt 0:00:26]} Qxg3 {[%emt 0:02:29]} 20. hxg3 {[%emt 0:01:10]} Bh5 {[%emt 0:08:03]} 21. Bd4 {[%emt 0:01:18]} Rc8 {[%emt 0:02:16]} 22. f3 {[%emt 0:02:33]} Rc2 {[%emt 0:03:32]} 23. Rd1 {[%emt 0:02:23]} Ra2 {[%emt 0:02:23]} 24. Bb2 {[%emt 0:03:08]} f6 {[%emt 0:01:36]} 25. Rd2 {[%emt 0:00:59]} Kf7 {[%emt 0:02:02]} 26. e4 {[%emt 0:00:21]} Bg6 {[%emt 0:02:25]} 27. g4 {[%emt 0:01:15]} h5 {[%emt 0:03:05]} 28. gxh5 {[%emt 0:00:08]} Bxh5 {[%emt 0:00:12]} 29. Kf2 {[%emt 0:00:28]} g5 {[%emt 0:02:15]} 30. g4 {[%emt 0:01:58]} Bg6 {[%emt 0:00:09]} 31. Ke3 {[%emt 0:00:05]} Ke6 {[%emt 0:01:17]} 32. Kd3 {[%emt 0:02:49]} Kd7 {[%emt 0:01:48]} 33. Kc2+ {[%emt 0:01:23]} Kc7 {[%emt 0:01:24]} 34. Kb1 {[%emt 0:00:54]} Bf7 {[%emt 0:00:10]} 35. Rh2 {[%emt 0:01:47]} Kc6 {[%emt 0:02:54]} 36. Rh6 {[%emt 0:02:18]} Kb5 {[%emt 0:01:35]} 37. Rxf6 {[%emt 0:00:29]} Bc4 {[%emt 0:00:57]} 38. Rf5+ {[%emt 0:01:07]} Ka4 {[%emt 0:00:10]} 39. Kc2 {[%emt 0:00:21]} b5 {[%emt 0:01:47]} 40. Rf6 {[%emt 0:00:00]} 1-0

[Event "Reykjavik Open 2022"]
[Site "Reykjavik"]
[Date "2022.04.07"]
[Round "2.38"]
[White "Bartelt, Max Peter"]
[Black "Martin, Julian"]
[Result "0-1"]
[ECO "D00"]
[WhiteElo "1923"]
[BlackElo "2388"]
[Annotator "ChessBase"]
[PlyCount "90"]
[EventDate "2022.04.06"]
[EventCountry "ISL"]
[SourceTitle "playchess.com"]
[Source "ChessBase"]
[SourceQuality "1"]
[TimeControl "40/5400+30:1800+30"]

1. d4 {[%emt 0:03:01]} Nf6 {[%emt 0:00:05]} 2. Bg5 {[%emt 0:00:07]} d5 {[%emt 0:03:10]} 3. Bxf6 {[%emt 0:00:06]} exf6 {[%emt 0:05:07]} 4. e3 {[%emt 0:00:15]} Be6 {[%emt 0:06:25]} 5. g3 {[%emt 0:04:52]} Nd7 {[%emt 0:03:37]} 6. Bg2 {[%emt 0:01:46]} Bd6 {[%emt 0:01:25]} 7. Ne2 {[%emt 0:00:25]} O-O {[%emt 0:01:00]} 8. O-O {[%emt 0:00:20]} c6 {[%emt 0:02:57]} 9. b3 {[%emt 0:00:56]} b5 {[%emt 0:04:06]} 10. Qd3 {[%emt 0:02:53]} Nb6 {[%emt 0:15:42]} 11. Nf4 {[%emt 0:02:01]} Bxf4 {[%emt 0:05:31]} 12. exf4 {[%emt 0:00:51]} Qd7 {[%emt 0:00:21]} 13. Nd2 {[%emt 0:01:35]} Bf5 {[%emt 0:03:15]} 14. Qc3 {[%emt 0:00:32]} Qd6 {[%emt 0:03:16]} 15. Qc5 {[%emt 0:06:10]} Qxc5 {[%emt 0:03:43]} 16. dxc5 {[%emt 0:00:05]} Nd7 {[%emt 0:00:36]} 17. c4 {[%emt 0:00:09]} Nxc5 {[%emt 0:09:34]} 18. cxb5 {[%emt 0:03:10]} cxb5 {[%emt 0:02:46]} 19. Nb1 {[%emt 0:13:45]} Bxb1 {[%emt 0:16:41]} 20. Raxb1 {[%emt 0:00:16]} Ne4 {[%emt 0:00:21]} 21. Rbd1 {[%emt 0:00:44]} Nc3 {[%emt 0:02:19]} 22. Rd3 {[%emt 0:01:33]} Rac8 {[%emt 0:01:39]} 23. Kh1 {[%emt 0:08:30]} Rfd8 {[%emt 0:04:11]} 24. Rc1 {[%emt 0:03:05]} d4 {[%emt 0:00:00]} 25. Rc2 {[%emt 0:00:23]} Rd6 {[%emt 0:00:00]} 26. b4 {[%emt 0:02:51]} g6 {[%emt 0:00:38]} 27. h4 {[%emt 0:05:19]} f5 {[%emt 0:00:39]} 28. h5 {[%emt 0:00:09]} Kg7 {[%emt 0:00:54]} 29. Bf3 {[%emt 0:03:03]} Ne4 {[%emt 0:02:20]} 30. Re2 {[%emt 0:01:36]} Rc3 {[%emt 0:00:21]} 31. Rxc3 {[%emt 0:03:10]} dxc3 {[%emt 0:00:08]} 32. Rc2 {[%emt 0:00:18]} Rd3 {[%emt 0:00:31]} 33. Kg2 {[%emt 0:01:44]} a6 {[%emt 0:01:09]} 34. g4 {[%emt 0:02:02]} Kf6 {[%emt 0:00:19]} 35. Rc1 {[%emt 0:10:02]} Ke6 {[%emt 0:00:23]} 36. hxg6 {[%emt 0:03:37]} hxg6 {[%emt 0:00:30]} 37. Bd1 {[%emt 0:00:43]} Rd2 {[%emt 0:00:16]} 38. Bb3+ {[%emt 0:00:03]} Ke7 {[%emt 0:00:41]} 39. Rc2 {[%emt 0:00:09]} fxg4 {[%emt 0:00:31]} 40. a4 {[%emt 0:00:00]} g3 {[%emt 0:00:00]} 41. axb5 {[%emt 0:11:16]} axb5 {[%emt 0:01:42]} 42. Kf3 {[%emt 0:01:19]} gxf2 {[%emt 0:00:36]} 43. Rc1 {[%emt 0:00:48]} f5 {[%emt 0:00:57]} 44. Kg2 {[%emt 0:03:12]} Re2 {[%emt 0:01:29]} 45. Rc2 {[%emt 0:02:52]} Nd2 {[%emt 0:00:15]} 0-1

[Event "Reykjavik Open 2022"]
[Site "Reykjavik"]
[Date "2022.04.07"]
[Round "2.39"]
[White "Maes, Tibo"]
[Black "Mahitosh Dey"]
[Result "0-1"]
[ECO "C42"]
[WhiteElo "1918"]
[BlackElo "2176"]
[Annotator "RC"]
[PlyCount "50"]
[EventDate "2022.04.06"]
[EventCountry "ISL"]
[SourceTitle "playchess.com"]
[Source "ChessBase"]
[SourceQuality "1"]
[TimeControl "40/5400+30:1800+30"]

1. e4 {[%emt 0:00:04]} e5 {[%emt 0:00:04]} 2. Nf3 {[%emt 0:00:13]} Nf6 {[%emt 0:00:05]} 3. Nxe5 {[%emt 0:00:47]} d6 {[%emt 0:00:07]} 4. Nf3 {[%emt 0:00:11]} Nxe4 {[%emt 0:00:06]} 5. Nc3 {[%emt 0:00:23]} Nxc3 {[%emt 0:00:05]} 6. dxc3 {[%emt 0:00:05]} Be7 {[%emt 0:00:04]} 7. Be3 {[%emt 0:01:14]} Nc6 {[%emt 0:00:07]} 8. Qd2 {[%emt 0:02:21]} Be6 {[%emt 0:00:19]} 9. O-O-O {[%emt 0:02:27]} Qd7 {[%emt 0:00:05]} 10. Nd4 {[%emt 0:05:02]} Nxd4 {[%emt 0:00:09]} 11. Bxd4 {[%emt 0:00:13]} O-O {[%emt 0:01:32]} 12. Kb1 {[%emt 0:08:44]} Rfc8 {[%emt 0:00:34]} 13. h3 {[%emt 0:09:38]} c5 {[%emt 0:00:09]} 14. Be3 {[%emt 0:00:06]} b5 {[%emt 0:00:20]} 15. g4 {[%emt 0:02:56]} Qc6 {[%emt 0:04:26]} 16. Rg1 {[%emt 0:10:13]} Qa6 {[%emt 0:00:05]} 17. a3 {[%emt 0:00:49]} Rab8 {[%emt 0:01:23]} 18. f4 {[%emt 0:04:58]} f6 {[%emt 0:00:23]} 19. f5 {[%emt 0:04:46]} Bf7 {[%emt 0:00:05]} 20. g5 {[%emt 0:00:07]} Qa4 {[%emt 0:00:52]} 21. gxf6 {[%emt 0:08:26]} Bxf6 {[%emt 0:00:07]} 22. Qxd6 {[%emt 0:13:49]} Rd8 {[%emt 0:00:04]} 23. Qxf6 {[%emt 0:00:04]} Rxd1+ {[%emt 0:00:02]} 24. Bc1 {[%emt 0:00:10]} Rxc1+ {[%emt 0:00:02]} 25. Kxc1 {[%emt 0:00:29]} Qf4+ {[%emt 0:00:02]} 0-1

[Event "Reykjavik Open 2022"]
[Site "Reykjavik"]
[Date "2022.04.07"]
[Round "2.40"]
[White "Johansson, Carl Fredrik"]
[Black "Unhjem, Bjorn Robert Lovoll"]
[Result "1-0"]
[ECO "E55"]
[WhiteElo "2216"]
[BlackElo "1911"]
[Annotator "TA"]
[PlyCount "191"]
[EventDate "2022.04.06"]
[EventCountry "ISL"]
[SourceTitle "playchess.com"]
[Source "ChessBase"]
[SourceQuality "1"]
[TimeControl "40/5400+30:1800+30"]

{[%evp 117,191,-8,0,0,0,-8,0,0,0,0,0,0,0,0,0,-2,0,0,0,0,0,0,0,0,0,0,0,0,0,0,0,0,370,355,368,368,361,361,308,72,302,294,204,254,169,935,920,932,935,847,834,820,421,741,625,647,597,362,895,412,925,922,848,408,481,362,436,410,1395,1349,1408,1408,1291,1237,1264,854]} 1. d4 {[%emt 0:00:04]} Nf6 {[%emt 0:00:09]} 2. c4 {[%emt 0:00:03]} e6 {[%emt 0:00:09]} 3. Nc3 {[%emt 0:00:04]} Bb4 {[%emt 0:00:09]} 4. e3 {[%emt 0:00:07]} O-O {[%emt 0:00:18]} 5. Bd3 {[%emt 0:01:41]} c5 {[%emt 0:03:22]} 6. Nf3 {[%emt 0:00:24]} d5 {[%emt 0:01:34]} 7. O-O {[%emt 0:00:16]} cxd4 {[%emt 0:02:11]} 8. exd4 {[%emt 0:00:12]} dxc4 {[%emt 0:04:30]} 9. Bxc4 {[%emt 0:00:03]} Nbd7 {[%emt 0:00:20]} 10. Qe2 {[%emt 0:01:54]} Nb6 {[%emt 0:00:48]} 11. Bb3 {[%emt 0:08:00]} Nbd5 {[%emt 0:00:22]} 12. Bd2 {[%emt 0:04:44]} Be7 {[%emt 0:02:54]} 13. Rfe1 {[%emt 0:03:18]} b6 {[%emt 0:00:48]} 14. Ne5 {[%emt 0:03:48]} Bb7 {[%emt 0:02:56]} 15. Rad1 {[%emt 0:01:44]} Rc8 {[%emt 0:04:34]} 16. Qd3 {[%emt 0:06:18]} Qd6 {[%emt 0:08:58]} 17. Qh3 {[%emt 0:02:16]} Nxc3 {[%emt 0:04:46]} 18. bxc3 {[%emt 0:02:49]} Bd5 {[%emt 0:01:58]} 19. Bc2 {[%emt 0:03:24]} g6 {[%emt 0:04:04]} 20. Bh6 {[%emt 0:02:01]} Rfe8 {[%emt 0:01:34]} 21. Bg5 {[%emt 0:07:42]} Nh5 {[%emt 0:02:57]} 22. Bc1 {[%emt 0:05:28]} Bxa2 {[%emt 0:04:15]} 23. g4 {[%emt 0:02:25]} Nf6 {[%emt 0:00:13]} 24. Bg5 {[%emt 0:01:18]} Rf8 {[%emt 0:14:12]} 25. Ra1 {[%emt 0:04:55]} Bd5 {[%emt 0:04:49]} 26. Rxa7 {[%emt 0:04:17]} Rc7 {[%emt 0:00:19]} 27. Rxc7 {[%emt 0:06:16]} Qxc7 {[%emt 0:00:06]} 28. Qe3 {[%emt 0:08:04]} Rc8 {[%emt 0:00:41]} 29. c4 {[%emt 0:04:32]} Bxc4 {[%emt 0:04:28]} 30. Qf4 {[%emt 0:02:12]} Qd8 {[%emt 0:04:33]} 31. Be4 {[%emt 0:01:31]} Bb5 {[%emt 0:00:37]} 32. Rb1 {[%emt 0:02:01]} Be8 {[%emt 0:00:10]} 33. Bb7 {[%emt 0:02:43]} Nd5 {[%emt 0:01:55]} 34. Bxe7 {[%emt 0:00:07]} Qxe7 {[%emt 0:01:17]} 35. Bxd5 {[%emt 0:00:20]} exd5 {[%emt 0:00:22]} 36. Rxb6 {[%emt 0:01:23]} Qa3 {[%emt 0:00:33]} 37. Kg2 {[%emt 0:01:53]} Qe7 {[%emt 0:02:17]} 38. g5 {[%emt 0:01:53]} Bd7 {[%emt 0:01:04]} 39. Rb7 {[%emt 0:00:08]} Bh3+ {[%emt 0:00:08]} 40. Kxh3 {[%emt 0:00:00]} Qxb7 {[%emt 0:00:00]} 41. Ng4 {[%emt 0:00:26]} Qe7 {[%emt 0:01:15]} 42. Nf6+ {[%emt 0:00:10]} Kg7 {[%emt 0:00:26]} 43. Qh4 {[%emt 0:01:39]} h5 {[%emt 0:00:27]} 44. gxh6+ {[%emt 0:00:07]} Kh8 {[%emt 0:00:14]} 45. Qf4 {[%emt 0:02:06]} Rd8 {[%emt 0:02:56]} 46. Ng4 {[%emt 0:06:01]} Rd6 {[%emt 0:03:48]} 47. Kg3 {[%emt 0:00:00]} f6 {[%emt 0:01:51]} 48. h4 {[%emt 0:00:00]} Rb6 {[%emt 0:01:26]} 49. Qf3 {[%emt 0:04:28]} Kh7 {[%emt 0:01:25]} 50. h5 {[%emt 0:02:12]} f5 {[%emt 0:03:08]} 51. hxg6+ {[%emt 0:03:25]} Kxg6 {[%emt 0:02:25]} 52. Ne5+ {[%emt 0:00:33]} Kxh6 {[%emt 0:00:19]} 53. Qxd5 {[%emt 0:02:12]} Kg7 {[%emt 0:03:36]} 54. Kf3 {[%emt 0:09:40]} Rd6 {[%emt 0:02:03]} 55. Qc4 {[%emt 0:01:47]} Qb7+ {[%emt 0:00:18]} 56. Kg3 {[%emt 0:03:42]} Qa7 {[%emt 0:04:04]} 57. Qc1 {[%emt 0:03:23]} Qe7 {[%emt 0:00:46]} 58. Qf4 {[%emt 0:00:09]} Qf6 {[%emt 0:00:46]} 59. Kf3 {[%emt 0:01:07]} Qe6 {[%emt 0:06:51]} 60. Qg5+ {[%emt 0:00:49]} Kf8 {[%emt 0:01:17]} 61. Qh4 {[%emt 0:02:33]} Qb3+ {[%emt 0:02:27]} 62. Ke2 {[%emt 0:01:22]} Qb2+ {[%emt 0:00:42]} 63. Ke3 {[%emt 0:01:06]} Qc3+ {[%emt 0:01:05]} 64. Ke2 {[%emt 0:00:01]} Qc2+ {[%emt 0:01:58]} (64... Qxd4 $2 65. Qh8+ Ke7 66. Nc6+ $1 {[%mdl 512]} Rxc6 67. Qxd4 $18) ({But not} 64... Rxd4 65. Qf6+ Ke8 66. Qe6+ Kd8 67. Nc6+ Kc7 68. Nxd4 Qxd4 69. Qxf5 $16) 65. Ke3 {[%emt 0:00:01]} Qc1+ {[%emt 0:00:27]} 66. Ke2 {[%emt 0:00:11]} Qb2+ {[%emt 0:05:15]} 67. Ke3 {[%emt 0:00:04]} Qb3+ {[%emt 0:00:20]} 68. Ke2 {[%emt 0:00:10]} Qg8 {[%emt 0:00:54]} 69. Qh5 {[%emt 0:01:32]} Qe6 {[%emt 0:01:52]} (69... Rxd4 70. Qxf5+ Kg7 71. Ke3) 70. Qh8+ {[%emt 0:01:00]} Ke7 {[%emt 0:00:12]} 71. Kd3 {[%emt 0:01:04]} Qb3+ {[%emt 0:00:50]} 72. Ke2 {[%emt 0:00:02]} Qa2+ {[%emt 0:03:42]} 73. Kf1 {[%emt 0:00:32]} Qe6 {[%emt 0:02:11]} 74. Qg7+ {[%emt 0:00:26]} Kd8 $2 {[%emt 0:00:08][%mdl 8192]} (74... Ke8 $11) 75. Nf7+ $18 {[%emt 0:00:35]} Kc7 {[%emt 0:00:48]} 76. Nxd6+ {[%emt 0:00:22]} Kxd6 {[%emt 0:00:07]} 77. Qg3+ {[%emt 0:00:41]} Kd7 {[%emt 0:01:29]} 78. Qd3 $2 {[%emt 0:00:36]} (78. Qe5 $1 $18 {[%cal Re5e6] And now Qxe6+ would win.} Qxe5 79. dxe5) 78... Qd5 $2 {[%emt 0:01:25]} (78... Kd8 $16) 79. Ke2 $18 {[%emt 0:00:25]} Ke6 {[%emt 0:00:31] [#]} 80. Qe3+ $1 {[%emt 0:00:15]} Kf6 {[%emt 0:01:02]} 81. Qh6+ $2 {[%emt 0:00:07]} (81. Qe8) 81... Kf7 $18 {[%emt 0:00:54] [#]} 82. Qh7+ $1 {[%emt 0:00:04]} Ke8 {[%emt 0:00:22]} 83. Qh8+ {[%emt 0:00:10]} Kd7 {[%emt 0:01:22]} 84. Qe5 {[%emt 0:00:42]} Qf7 {[%emt 0:00:51]} 85. Qb5+ {[%emt 0:00:19]} Kc7 {[%emt 0:00:24]} 86. Qc5+ {[%emt 0:00:02]} Kb7 {[%emt 0:00:16]} 87. Ke3 {[%emt 0:00:34]} Qh5 $2 {[%emt 0:00:31]} (87... Qe6+ 88. Qe5 Qh6+ 89. Ke2 Qh5+ 90. f3 Qg6 91. Qe7+ Kb6 92. Qc5+ Kb7 93. Qe7+ Kb6) 88. Qe7+ $18 {[%emt 0:00:38]} Kc6 {[%emt 0:00:26]} (88... Kc8 $142 89. Qe6+ Kb7) 89. Qf6+ $18 {[%emt 0:00:10]} Kd7 {[%emt 0:00:30]} 90. Qg7+ {[%emt 0:00:04]} (90. f3 $142 Qh1 91. Qxf5+ Kd6 92. Qe5+ Kc6 93. f4) 90... Kd6 {[%emt 0:00:17]} 91. Qg3+ {[%emt 0:00:05]} Kd7 {[%emt 0:00:10]} 92. Kf4 {[%emt 0:00:31]} Kd6 {[%emt 0:00:58]} (92... Qh8 $142 93. Qe3 (93. Kxf5 Qxd4 94. Qf3 Qd6 $18) 93... Qf6) 93. Qa3+ $18 {[%emt 0:00:19]} Ke6 {[%emt 0:00:27]} 94. Qb3+ {[%emt 0:00:18]} Kd6 {[%emt 0:00:41]} 95. Qb6+ {[%emt 0:00:09]} Ke7 {[%emt 0:01:11]} 96. Qc5+ {[%emt 0:00:24]} 1-0

[Event "Reykjavik Open 2022"]
[Site "Reykjavik"]
[Date "2022.04.07"]
[Round "2.41"]
[White "Arvidsson, Jonas"]
[Black "Villiers, Thomas"]
[Result "0-1"]
[ECO "D05"]
[WhiteElo "1934"]
[BlackElo "2202"]
[Annotator "RC"]
[PlyCount "86"]
[EventDate "2022.04.06"]
[EventCountry "ISL"]
[SourceTitle "playchess.com"]
[Source "ChessBase"]
[SourceQuality "1"]
[TimeControl "40/5400+30:1800+30"]

1. e4 {[%emt 0:00:05]} e6 {[%emt 0:05:45]} 2. d4 {[%emt 0:00:05]} d5 {[%emt 0:00:08]} 3. Nd2 {[%emt 0:00:18]} Be7 {[%emt 0:00:56]} 4. Bd3 {[%emt 0:01:35]} c5 {[%emt 0:01:46]} 5. c3 {[%emt 0:00:35]} cxd4 {[%emt 0:00:55]} 6. cxd4 {[%emt 0:00:15]} dxe4 {[%emt 0:04:33]} 7. Nxe4 {[%emt 0:00:33]} Nf6 {[%emt 0:02:41]} 8. Nf3 {[%emt 0:03:47]} Nbd7 {[%emt 0:02:34]} 9. O-O {[%emt 0:02:25]} O-O {[%emt 0:02:03]} 10. Bf4 {[%emt 0:07:19]} Nxe4 {[%emt 0:00:25]} 11. Bxe4 {[%emt 0:00:11]} Nf6 {[%emt 0:00:01]} 12. Bd3 {[%emt 0:03:06]} b6 {[%emt 0:00:14]} 13. Rc1 {[%emt 0:01:25]} Bb7 {[%emt 0:00:20]} 14. Be5 {[%emt 0:04:09]} Rc8 {[%emt 0:10:46]} 15. Qe2 {[%emt 0:04:00]} Qd5 {[%emt 0:01:56]} 16. b3 {[%emt 0:03:42]} Ne4 {[%emt 0:03:33]} 17. Bc4 {[%emt 0:05:37]} Qa5 {[%emt 0:00:13]} 18. a4 {[%emt 0:02:36]} Nd6 {[%emt 0:06:43]} 19. Nd2 {[%emt 0:05:36]} Nxc4 {[%emt 0:00:50]} 20. Nxc4 {[%emt 0:00:30]} Qd5 {[%emt 0:00:13]} 21. Qg4 {[%emt 0:04:09]} f6 {[%emt 0:00:43]} 22. Ne3 {[%emt 0:01:34]} Qd7 {[%emt 0:02:00]} 23. Bg3 {[%emt 0:02:44]} f5 {[%emt 0:01:13]} 24. Qf4 {[%emt 0:02:32]} g5 {[%emt 0:02:32]} 25. Rc7 {[%emt 0:00:57]} Qe8 {[%emt 0:06:57]} 26. Qe5 {[%emt 0:05:18]} Bf6 {[%emt 0:01:52]} 27. Qd6 {[%emt 0:02:30]} Rxc7 {[%emt 0:00:40]} 28. Qxc7 {[%emt 0:00:19]} Ba6 {[%emt 0:00:11]} 29. Rc1 {[%emt 0:05:25]} f4 {[%emt 0:03:25]} 30. Qxa7 {[%emt 0:01:01]} Bd3 {[%emt 0:02:05]} 31. Qxb6 {[%emt 0:00:53]} Qd7 {[%emt 0:02:13]} 32. Ng4 {[%emt 0:04:11]} Bxd4 {[%emt 0:02:15]} 33. Qa5 {[%emt 0:00:44]} fxg3 {[%emt 0:04:04]} 34. hxg3 {[%emt 0:03:07]} e5 {[%emt 0:01:32]} 35. Nxe5 {[%emt 0:06:27]} Bxf2+ {[%emt 0:04:52]} 36. Kh1 {[%emt 0:00:29]} Qe6 {[%emt 0:01:09]} 37. Rc6 {[%emt 0:03:06]} Bxg3 {[%emt 0:00:09]} 38. Nf3 {[%emt 0:01:45]} Qxc6 {[%emt 0:00:58]} 39. Qxg5+ {[%emt 0:00:07]} Qg6 {[%emt 0:00:06]} 40. Qd5+ {[%emt 0:00:00]} Kh8 {[%emt 0:00:00]} 41. Qd4+ {[%emt 0:00:38]} Qf6 {[%emt 0:02:28]} 42. Qxd3 {[%emt 0:00:21]} Qa1+ {[%emt 0:00:10]} 43. Ng1 {[%emt 0:00:11]} Bf2 {[%emt 0:00:03]} 0-1

[Event "Reykjavik Open 2022"]
[Site "Reykjavik"]
[Date "2022.04.07"]
[Round "2.42"]
[White "Povah, Nigel E"]
[Black "Vemparala, Nikash"]
[Result "1/2-1/2"]
[ECO "D00"]
[WhiteElo "2245"]
[BlackElo "1998"]
[Annotator "RC"]
[PlyCount "46"]
[EventDate "2022.04.06"]
[EventCountry "ISL"]
[SourceTitle "playchess.com"]
[Source "ChessBase"]
[SourceQuality "1"]
[TimeControl "40/5400+30:1800+30"]

1. d4 {[%emt 0:00:05]} d5 {[%emt 0:00:12]} 2. Bf4 {[%emt 0:00:11]} Nf6 {[%emt 0:00:21]} 3. e3 {[%emt 0:00:08]} e6 {[%emt 0:00:10]} 4. Nd2 {[%emt 0:00:19]} Bd6 {[%emt 0:01:44]} 5. Bg3 {[%emt 0:00:21]} O-O {[%emt 0:01:24]} 6. Bd3 {[%emt 0:01:31]} b6 {[%emt 0:02:05]} 7. c3 {[%emt 0:03:17]} c5 {[%emt 0:03:25]} 8. Ngf3 {[%emt 0:06:43]} Bb7 {[%emt 0:05:11]} 9. Qb1 {[%emt 0:08:00]} h6 {[%emt 0:09:02]} 10. O-O {[%emt 0:15:09]} Bxg3 {[%emt 0:10:14]} 11. hxg3 {[%emt 0:00:18]} Nbd7 {[%emt 0:00:33]} 12. Re1 {[%emt 0:19:18]} Qc7 {[%emt 0:13:36]} 13. e4 {[%emt 0:06:43]} dxe4 {[%emt 0:03:08]} 14. Nxe4 {[%emt 0:00:12]} Nxe4 {[%emt 0:00:27]} 15. Bxe4 {[%emt 0:00:05]} Bxe4 {[%emt 0:00:09]} 16. Qxe4 {[%emt 0:00:11]} Nf6 {[%emt 0:00:31]} 17. Qh4 {[%emt 0:03:00]} cxd4 {[%emt 0:08:46]} 18. Nxd4 {[%emt 0:00:09]} Qc5 {[%emt 0:00:47]} 19. Qf4 {[%emt 0:05:16]} Rfd8 {[%emt 0:04:15]} 20. Re5 {[%emt 0:08:09]} Rd5 {[%emt 0:01:26]} 21. Rae1 {[%emt 0:00:10]} Rad8 {[%emt 0:04:29]} 22. R5e2 {[%emt 0:10:39]} Qd6 {[%emt 0:06:03]} 23. Qf3 {[%emt 0:01:33]} Nd7 {[%emt 0:04:18]} 1/2-1/2